[Event "Titled Tuesday Blitz February 21 Early 2023"]
[White "Deev, Andrei"]
[Black "Miszler, Levente"]
[WhiteFideId "4102690"]
[BlackFideId "763276"]
[WhiteElo "2390"]
[BlackElo "2271"]
[Result "0-1"]
[Round "11"]
[TimeControl "180+2"]
[Date "2023.02.21"]
[WhiteClock "0:00:09"]
[BlackClock "0:01:26"]

1. e4 {[%clk 0:03:00]}  e6 {[%clk 0:02:55]} 2. d4 {[%clk 0:02:59]}  d5 {[%clk 0:02:55]} 3. Nd2 {[%clk 0:02:58]}  f5 {[%clk 0:02:54]} 4. exf5 {[%clk 0:02:56]}  exf5 {[%clk 0:02:55]} 5. Ngf3 {[%clk 0:02:56]}  Nf6 {[%clk 0:02:53]} 6. Ne5 {[%clk 0:02:55]}  Bd6 {[%clk 0:02:50]} 7. Ndf3 {[%clk 0:02:53]}  O-O {[%clk 0:02:50]} 8. Bd3 {[%clk 0:02:51]}  Ne4 {[%clk 0:02:46]} 9. O-O {[%clk 0:02:48]}  Nc6 {[%clk 0:02:43]} 10. c4 {[%clk 0:02:29]}  Be6 {[%clk 0:02:37]} 11. Nxc6 {[%clk 0:02:23]}  bxc6 {[%clk 0:02:37]} 12. c5 {[%clk 0:02:22]}  Be7 {[%clk 0:02:34]} 13. Bf4 {[%clk 0:02:21]}  g5 {[%clk 0:02:31]} 14. Be5 {[%clk 0:02:11]}  g4 {[%clk 0:02:31]} 15. Ne1 {[%clk 0:02:04]}  Bf6 {[%clk 0:01:48]} 16. Bxf6 {[%clk 0:01:29]}  Qxf6 {[%clk 0:01:49]} 17. Nc2 {[%clk 0:01:26]}  f4 {[%clk 0:01:42]} 18. f3 {[%clk 0:01:25]}  gxf3 {[%clk 0:01:38]} 19. gxf3 {[%clk 0:01:15]}  Ng5 {[%clk 0:01:32]} 20. Kh1 {[%clk 0:01:09]}  Kh8 {[%clk 0:01:31]} 21. Rg1 {[%clk 0:00:51]}  Rg8 {[%clk 0:01:31]} 22. Qe2 {[%clk 0:00:18]}  Nh3 {[%clk 0:01:29]} 23. Rxg8+ {[%clk 0:00:16]}  Rxg8 {[%clk 0:01:29]} 24. Re1 {[%clk 0:00:12]}  Qg5 {[%clk 0:01:27]} 25. Qe5+ {[%clk 0:00:11]}  Qxe5 {[%clk 0:01:27]} 26. dxe5 {[%clk 0:00:09]}  Nf2# {[%clk 0:01:26]} 0-1


[Site "https://www.chess.com"]

[Event "Titled Tuesday Blitz February 21 Early 2023"]
[White "Tologon tegin, Semetei"]
[Black "Fernandez Siles, Luis"]
[WhiteFideId "13800574"]
[BlackFideId "2209420"]
[WhiteElo "2372"]
[BlackElo "2218"]
[Result "0-1"]
[Round "11"]
[TimeControl "180+2"]
[Date "2023.02.21"]
[WhiteClock "0:00:09"]
[BlackClock "0:00:40"]

1. Nf3 {[%clk 0:02:52]}  Nf6 {[%clk 0:02:59]} 2. g3 {[%clk 0:02:51]}  g6 {[%clk 0:02:59]} 3. Bg2 {[%clk 0:02:52]}  Bg7 {[%clk 0:03:00]} 4. b3 {[%clk 0:02:52]}  O-O {[%clk 0:02:56]} 5. Bb2 {[%clk 0:02:52]}  d5 {[%clk 0:02:57]} 6. c4 {[%clk 0:02:51]}  c5 {[%clk 0:02:52]} 7. cxd5 {[%clk 0:02:50]}  Nxd5 {[%clk 0:02:50]} 8. Bxg7 {[%clk 0:02:50]}  Kxg7 {[%clk 0:02:50]} 9. O-O {[%clk 0:02:45]}  Nc6 {[%clk 0:02:50]} 10. d4 {[%clk 0:02:44]}  cxd4 {[%clk 0:02:43]} 11. Nxd4 {[%clk 0:02:44]}  Nxd4 {[%clk 0:02:43]} 12. Qxd4+ {[%clk 0:02:45]}  Nf6 {[%clk 0:02:43]} 13. Qb2 {[%clk 0:02:45]}  Qb6 {[%clk 0:02:40]} 14. Nc3 {[%clk 0:02:44]}  Be6 {[%clk 0:02:35]} 15. Rac1 {[%clk 0:02:14]}  Rac8 {[%clk 0:02:24]} 16. Na4 {[%clk 0:01:40]}  Qb5 {[%clk 0:02:23]} 17. Qd4 {[%clk 0:01:39]}  b6 {[%clk 0:02:17]} 18. Nc3 {[%clk 0:01:33]}  Qc5 {[%clk 0:02:10]} 19. Qf4 {[%clk 0:01:32]}  Rfd8 {[%clk 0:02:01]} 20. Nd5 {[%clk 0:01:25]}  Qd6 {[%clk 0:01:48]} 21. Qxd6 {[%clk 0:01:22]}  exd6 {[%clk 0:01:29]} 22. Ne7 {[%clk 0:01:21]}  Rxc1 {[%clk 0:01:29]} 23. Rxc1 {[%clk 0:01:22]}  d5 {[%clk 0:01:22]} 24. e3 {[%clk 0:01:09]}  Kf8 {[%clk 0:01:12]} 25. Nc6 {[%clk 0:01:03]}  Rc8 {[%clk 0:01:10]} 26. b4 {[%clk 0:00:52]}  b5 {[%clk 0:01:04]} 27. Rc5 {[%clk 0:00:51]}  Nd7 {[%clk 0:01:00]} 28. Rc2 {[%clk 0:00:48]}  Bf5 {[%clk 0:00:56]} 29. Rc3 {[%clk 0:00:45]}  Be4 {[%clk 0:00:49]} 30. f3 {[%clk 0:00:36]}  d4 {[%clk 0:00:50]} 31. exd4 {[%clk 0:00:22]}  Rxc6 {[%clk 0:00:43]} 32. Re3 {[%clk 0:00:18]}  Bd5 {[%clk 0:00:43]} 33. Bf1 {[%clk 0:00:17]}  Bc4 {[%clk 0:00:43]} 34. Bh3 {[%clk 0:00:17]}  Rd6 {[%clk 0:00:42]} 35. a3 {[%clk 0:00:12]}  Rxd4 {[%clk 0:00:42]} 36. f4 {[%clk 0:00:12]}  Nf6 {[%clk 0:00:41]} 37. Bg2 {[%clk 0:00:09]}  Bd5 {[%clk 0:00:40]} 38. Bf1 {[%clk 0:00:09]}  Rd1 {[%clk 0:00:40]} 0-1


[Site "https://www.chess.com"]

[Event "Titled Tuesday Blitz February 21 Early 2023"]
[White "Lucassen, Mickey"]
[Black "Florescu, Codrut-Constantin"]
[WhiteFideId "12919110"]
[BlackFideId "1202200"]
[WhiteElo "2023"]
[BlackElo "2259"]
[Result "0-1"]
[Round "11"]
[TimeControl "180+2"]
[Date "2023.02.21"]
[WhiteClock "0:00:03"]
[BlackClock "0:01:04"]

1. e4 {[%clk 0:02:55]}  c5 {[%clk 0:02:59]} 2. Nc3 {[%clk 0:02:54]}  e6 {[%clk 0:02:59]} 3. Nge2 {[%clk 0:02:53]}  a6 {[%clk 0:02:52]} 4. g3 {[%clk 0:02:49]}  b5 {[%clk 0:02:52]} 5. Bg2 {[%clk 0:02:48]}  Bb7 {[%clk 0:02:51]} 6. d4 {[%clk 0:02:48]}  b4 {[%clk 0:02:50]} 7. Na4 {[%clk 0:02:47]}  cxd4 {[%clk 0:02:45]} 8. Nxd4 {[%clk 0:02:43]}  Nf6 {[%clk 0:02:44]} 9. O-O {[%clk 0:02:42]}  Be7 {[%clk 0:02:42]} 10. e5 {[%clk 0:02:24]}  Nd5 {[%clk 0:02:36]} 11. Qg4 {[%clk 0:02:15]}  Kf8 {[%clk 0:02:29]} 12. c4 {[%clk 0:01:52]}  bxc3 {[%clk 0:02:27]} 13. Nxc3 {[%clk 0:01:45]}  Nxc3 {[%clk 0:02:13]} 14. Bxb7 {[%clk 0:01:44]}  Ra7 {[%clk 0:02:13]} 15. Bg2 {[%clk 0:01:41]}  Nb5 {[%clk 0:02:12]} 16. Rd1 {[%clk 0:01:29]}  Nxd4 {[%clk 0:02:07]} 17. Qxd4 {[%clk 0:01:28]}  Rc7 {[%clk 0:02:03]} 18. Be3 {[%clk 0:01:22]}  Bc5 {[%clk 0:01:55]} 19. Qd3 {[%clk 0:01:05]}  Bxe3 {[%clk 0:01:55]} 20. Qxe3 {[%clk 0:01:06]}  h6 {[%clk 0:01:51]} 21. Rd6 {[%clk 0:01:05]}  g6 {[%clk 0:01:48]} 22. Rad1 {[%clk 0:01:04]}  Kg7 {[%clk 0:01:48]} 23. Qb6 {[%clk 0:00:58]}  Qc8 {[%clk 0:01:47]} 24. h4 {[%clk 0:00:54]}  h5 {[%clk 0:01:46]} 25. Kh2 {[%clk 0:00:53]}  Re8 {[%clk 0:01:43]} 26. b4 {[%clk 0:00:51]}  Rc2 {[%clk 0:01:40]} 27. a4 {[%clk 0:00:48]}  Qc3 {[%clk 0:01:35]} 28. Qd4 {[%clk 0:00:26]}  Qxd4 {[%clk 0:01:33]} 29. R1xd4 {[%clk 0:00:26]}  Rxf2 {[%clk 0:01:33]} 30. b5 {[%clk 0:00:25]}  axb5 {[%clk 0:01:32]} 31. axb5 {[%clk 0:00:26]}  Rb2 {[%clk 0:01:30]} 32. Rb6 {[%clk 0:00:22]}  Re2 {[%clk 0:01:23]} 33. Rb7 {[%clk 0:00:15]}  Rxe5 {[%clk 0:01:23]} 34. Ra4 {[%clk 0:00:15]}  Rc8 {[%clk 0:01:10]} 35. Ra8 {[%clk 0:00:14]}  Rc2 {[%clk 0:01:09]} 36. Rbxb8 {[%clk 0:00:09]}  Ree2 {[%clk 0:01:08]} 37. b6 {[%clk 0:00:10]}  Rxg2+ {[%clk 0:01:07]} 38. Kh1 {[%clk 0:00:11]}  Rgd2 {[%clk 0:01:07]} 39. Ra1 {[%clk 0:00:08]}  Rb2 {[%clk 0:01:07]} 40. b7 {[%clk 0:00:07]}  Rd3 {[%clk 0:01:06]} 41. Kg1 {[%clk 0:00:04]}  Rxg3+ {[%clk 0:01:06]} 42. Kf1 {[%clk 0:00:05]}  Rgb3 {[%clk 0:01:06]} 43. Ra7 {[%clk 0:00:03]}  Kf6 {[%clk 0:01:05]} 44. Ke1 {[%clk 0:00:03]}  Rh3 {[%clk 0:01:04]} 0-1


[Site "https://www.chess.com"]

[Event "Titled Tuesday Blitz February 21 Early 2023"]
[White "Hirneise, Jens"]
[Black "Rios Escobar, Adan"]
[WhiteFideId "24614734"]
[BlackFideId "3403645"]
[WhiteElo "2277"]
[BlackElo "2234"]
[Result "1-0"]
[Round "11"]
[TimeControl "180+2"]
[Date "2023.02.21"]
[WhiteClock "0:00:07"]
[BlackClock "0:00:02"]

1. d4 {[%clk 0:03:00]}  Nf6 {[%clk 0:02:59]} 2. c4 {[%clk 0:03:00]}  g6 {[%clk 0:03:00]} 3. Nc3 {[%clk 0:03:00]}  Bg7 {[%clk 0:03:00]} 4. e4 {[%clk 0:02:57]}  O-O {[%clk 0:03:01]} 5. Be2 {[%clk 0:02:49]}  d6 {[%clk 0:03:01]} 6. Be3 {[%clk 0:02:48]}  Nc6 {[%clk 0:02:59]} 7. h4 {[%clk 0:02:37]}  e5 {[%clk 0:02:58]} 8. d5 {[%clk 0:02:35]}  Nd4 {[%clk 0:02:58]} 9. Bxd4 {[%clk 0:02:19]}  exd4 {[%clk 0:02:59]} 10. Qxd4 {[%clk 0:02:19]}  Re8 {[%clk 0:02:46]} 11. Qd3 {[%clk 0:02:17]}  Nd7 {[%clk 0:02:34]} 12. f3 {[%clk 0:01:55]}  Nc5 {[%clk 0:02:27]} 13. Qc2 {[%clk 0:01:53]}  h5 {[%clk 0:02:19]} 14. O-O-O {[%clk 0:01:46]}  Qf6 {[%clk 0:02:12]} 15. Nh3 {[%clk 0:01:40]}  Qxh4 {[%clk 0:02:06]} 16. Kb1 {[%clk 0:01:40]}  a6 {[%clk 0:02:00]} 17. g4 {[%clk 0:01:37]}  hxg4 {[%clk 0:01:57]} 18. fxg4 {[%clk 0:01:26]}  b5 {[%clk 0:01:49]} 19. Rdf1 {[%clk 0:01:08]}  b4 {[%clk 0:01:41]} 20. Na4 {[%clk 0:01:02]}  Nxe4 {[%clk 0:01:22]} 21. Nf4 {[%clk 0:00:57]}  Qg5 {[%clk 0:01:18]} 22. Rhg1 {[%clk 0:00:41]}  Bd7 {[%clk 0:01:09]} 23. Bd3 {[%clk 0:00:12]}  Qe5 {[%clk 0:00:25]} 24. Bxe4 {[%clk 0:00:07]}  Bxa4 {[%clk 0:00:25]} 25. Qh2 {[%clk 0:00:05]}  Qxe4+ {[%clk 0:00:24]} 26. Ka1 {[%clk 0:00:05]}  Bd7 {[%clk 0:00:09]} 27. Rh1 {[%clk 0:00:05]}  Bxg4 {[%clk 0:00:07]} 28. Qh7+ {[%clk 0:00:05]}  Kf8 {[%clk 0:00:08]} 29. Nxg6+ {[%clk 0:00:06]}  Qxg6 {[%clk 0:00:02]} 30. Qxg6 {[%clk 0:00:07]} 1-0


[Site "https://www.chess.com"]

[Event "Titled Tuesday Blitz February 21 Early 2023"]
[White "Filgueira, Hernan"]
[Black "Smith, Garrett L"]
[WhiteFideId "101770"]
[BlackFideId "2024829"]
[WhiteElo "2283"]
[BlackElo "2047"]
[Result "1-0"]
[Round "11"]
[TimeControl "180+2"]
[Date "2023.02.21"]
[WhiteClock "0:01:34"]
[BlackClock "0:01:18"]

1. e4 {[%clk 0:02:59]}  c5 {[%clk 0:02:59]} 2. Nf3 {[%clk 0:02:58]}  Nc6 {[%clk 0:02:59]} 3. Bb5 {[%clk 0:02:57]}  e6 {[%clk 0:02:59]} 4. O-O {[%clk 0:02:54]}  Nge7 {[%clk 0:02:59]} 5. Re1 {[%clk 0:02:53]}  a6 {[%clk 0:02:59]} 6. Bf1 {[%clk 0:02:53]}  d5 {[%clk 0:02:59]} 7. d3 {[%clk 0:02:53]}  d4 {[%clk 0:02:54]} 8. a4 {[%clk 0:02:50]}  Ng6 {[%clk 0:02:53]} 9. Nbd2 {[%clk 0:02:49]}  e5 {[%clk 0:02:53]} 10. Nc4 {[%clk 0:02:47]}  Be7 {[%clk 0:02:50]} 11. Bd2 {[%clk 0:02:44]}  O-O {[%clk 0:02:48]} 12. a5 {[%clk 0:02:45]}  Bd6 {[%clk 0:02:45]} 13. g3 {[%clk 0:02:39]}  f5 {[%clk 0:02:43]} 14. Nb6 {[%clk 0:02:32]}  fxe4 {[%clk 0:02:39]} 15. Nxa8 {[%clk 0:02:26]}  exf3 {[%clk 0:02:34]} 16. Nb6 {[%clk 0:02:25]}  Be6 {[%clk 0:02:29]} 17. c3 {[%clk 0:02:17]}  Qf6 {[%clk 0:02:20]} 18. c4 {[%clk 0:02:06]}  e4 {[%clk 0:01:56]} 19. Rxe4 {[%clk 0:02:03]}  Nce5 {[%clk 0:01:52]} 20. Nd5 {[%clk 0:01:56]}  Qf7 {[%clk 0:01:44]} 21. Nf4 {[%clk 0:01:50]}  Bf5 {[%clk 0:01:40]} 22. Nxg6 {[%clk 0:01:43]}  Qxg6 {[%clk 0:01:34]} 23. Rxe5 {[%clk 0:01:37]}  Bxe5 {[%clk 0:01:34]} 24. Qxf3 {[%clk 0:01:38]}  Bg4 {[%clk 0:01:22]} 25. Qd5+ {[%clk 0:01:37]}  Qe6 {[%clk 0:01:18]} 26. Qxe6+ {[%clk 0:01:34]}  Bxe6 {[%clk 0:01:18]} 27. Re1 {[%clk 0:01:34]}  Rf5 {[%clk 0:01:18]} 28. f4 {[%clk 0:01:34]} 1-0


[Site "https://www.chess.com"]

[Event "Titled Tuesday Blitz February 21 Early 2023"]
[White "Ezat, Mohamed"]
[Black "Lorenzo De La Riva, Lazaro"]
[WhiteFideId "10600906"]
[BlackFideId "2268809"]
[WhiteElo "2402"]
[BlackElo "2404"]
[Result "0-1"]
[Round "11"]
[TimeControl "180+2"]
[Date "2023.02.21"]
[WhiteClock "0:01:48"]
[BlackClock "0:00:52"]

1. d4 {[%clk 0:02:33]}  g6 {[%clk 0:02:54]} 2. e4 {[%clk 0:02:27]}  Bg7 {[%clk 0:02:48]} 3. h4 {[%clk 0:02:27]}  c5 {[%clk 0:02:42]} 4. dxc5 {[%clk 0:02:26]}  Na6 {[%clk 0:02:39]} 5. Nc3 {[%clk 0:02:25]}  Nxc5 {[%clk 0:02:38]} 6. Nf3 {[%clk 0:02:24]}  d6 {[%clk 0:02:37]} 7. h5 {[%clk 0:02:24]}  a6 {[%clk 0:02:31]} 8. h6 {[%clk 0:02:24]}  Bf8 {[%clk 0:02:29]} 9. e5 {[%clk 0:02:24]}  Bg4 {[%clk 0:02:06]} 10. exd6 {[%clk 0:02:09]}  Nf6 {[%clk 0:01:46]} 11. Be3 {[%clk 0:02:05]}  exd6 {[%clk 0:01:29]} 12. Qd4 {[%clk 0:02:02]}  Ne6 {[%clk 0:01:14]} 13. Qd2 {[%clk 0:01:59]}  Rc8 {[%clk 0:01:01]} 14. Nd4 {[%clk 0:01:48]}  Be7 {[%clk 0:00:52]} 0-1


[Site "https://www.chess.com"]

[Event "Titled Tuesday Blitz February 21 Early 2023"]
[White "mohsengabr2002"]
[Black "Zochowski, Kacper"]
[BlackFideId "1125494"]
[WhiteElo "2324"]
[BlackElo "2262"]
[Result "0-1"]
[Round "11"]
[TimeControl "180+2"]
[Date "2023.02.21"]
[WhiteClock "0:00:03"]
[BlackClock "0:00:26"]

1. b3 {[%clk 0:02:51]}  d6 {[%clk 0:02:59]} 2. Bb2 {[%clk 0:02:51]}  Nd7 {[%clk 0:03:00]} 3. e3 {[%clk 0:02:51]}  Ngf6 {[%clk 0:03:00]} 4. g4 {[%clk 0:02:50]}  g6 {[%clk 0:03:01]} 5. h4 {[%clk 0:02:47]}  h6 {[%clk 0:02:45]} 6. Bh3 {[%clk 0:02:42]}  e5 {[%clk 0:02:39]} 7. d4 {[%clk 0:02:33]}  Bg7 {[%clk 0:02:36]} 8. Nd2 {[%clk 0:02:23]}  exd4 {[%clk 0:02:34]} 9. Bxd4 {[%clk 0:02:21]}  b6 {[%clk 0:02:27]} 10. Qf3 {[%clk 0:02:20]}  Rb8 {[%clk 0:02:19]} 11. g5 {[%clk 0:02:17]}  Bb7 {[%clk 0:02:15]} 12. e4 {[%clk 0:02:16]}  hxg5 {[%clk 0:02:10]} 13. hxg5 {[%clk 0:02:15]}  Nh5 {[%clk 0:02:10]} 14. Bxd7+ {[%clk 0:02:09]}  Kxd7 {[%clk 0:02:05]} 15. Bxg7 {[%clk 0:02:02]}  Nxg7 {[%clk 0:02:06]} 16. Rxh8 {[%clk 0:01:57]}  Qxh8 {[%clk 0:02:05]} 17. Qxf7+ {[%clk 0:01:58]}  Kc8 {[%clk 0:01:57]} 18. O-O-O {[%clk 0:01:46]}  Bc6 {[%clk 0:01:56]} 19. Kb1 {[%clk 0:01:40]}  Kb7 {[%clk 0:01:56]} 20. Qxg6 {[%clk 0:01:38]}  Rf8 {[%clk 0:01:53]} 21. f3 {[%clk 0:01:37]}  Bd7 {[%clk 0:01:50]} 22. Ne2 {[%clk 0:01:35]}  Ne6 {[%clk 0:01:50]} 23. f4 {[%clk 0:01:26]}  Nxf4 {[%clk 0:01:46]} 24. Nxf4 {[%clk 0:01:25]}  Rxf4 {[%clk 0:01:47]} 25. Nc4 {[%clk 0:01:18]}  Bg4 {[%clk 0:01:29]} 26. Rc1 {[%clk 0:01:09]}  Be2 {[%clk 0:01:29]} 27. Ne3 {[%clk 0:01:05]}  Qe5 {[%clk 0:01:22]} 28. Rg1 {[%clk 0:00:48]}  Rxe4 {[%clk 0:01:22]} 29. Nf5 {[%clk 0:00:39]}  Bd3 {[%clk 0:01:00]} 30. cxd3 {[%clk 0:00:24]}  Re2 {[%clk 0:01:00]} 31. Qf6 {[%clk 0:00:21]}  Qh2 {[%clk 0:00:45]} 32. Rc1 {[%clk 0:00:16]}  Rxa2 {[%clk 0:00:45]} 33. g6 {[%clk 0:00:12]}  Ra3 {[%clk 0:00:40]} 34. Qb2 {[%clk 0:00:11]}  Qh3 {[%clk 0:00:32]} 35. Qxa3 {[%clk 0:00:10]}  Qxd3+ {[%clk 0:00:32]} 36. Rc2 {[%clk 0:00:08]}  Qxf5 {[%clk 0:00:33]} 37. g7 {[%clk 0:00:08]}  Qg6 {[%clk 0:00:30]} 38. Qb2 {[%clk 0:00:08]}  a5 {[%clk 0:00:30]} 39. Ka2 {[%clk 0:00:09]}  a4 {[%clk 0:00:28]} 40. Rg2 {[%clk 0:00:09]}  axb3+ {[%clk 0:00:28]} 41. Kxb3 {[%clk 0:00:08]}  Qd3+ {[%clk 0:00:27]} 42. Qc3 {[%clk 0:00:05]}  Qb5+ {[%clk 0:00:25]} 43. Kc2 {[%clk 0:00:04]}  Qf1 {[%clk 0:00:25]} 44. g8=Q {[%clk 0:00:03]}  Qf5+ {[%clk 0:00:26]} 0-1


[Site "https://www.chess.com"]

[Event "Titled Tuesday Blitz February 21 Early 2023"]
[White "Shubenkova, Veronika"]
[Black "MunichMouse"]
[WhiteFideId "44124040"]
[WhiteElo "1960"]
[BlackElo "2296"]
[Result "1-0"]
[Round "11"]
[TimeControl "180+2"]
[Date "2023.02.21"]
[WhiteClock "0:01:56"]
[BlackClock "0:00:55"]

1. e4 {[%clk 0:03:00]}  c5 {[%clk 0:02:59]} 2. Nc3 {[%clk 0:03:00]}  a6 {[%clk 0:02:59]} 3. g3 {[%clk 0:03:00]}  Nc6 {[%clk 0:02:57]} 4. Bg2 {[%clk 0:03:00]}  e5 {[%clk 0:02:57]} 5. d3 {[%clk 0:03:00]}  g6 {[%clk 0:02:58]} 6. Nd5 {[%clk 0:03:01]}  Bg7 {[%clk 0:02:55]} 7. Be3 {[%clk 0:02:59]}  d6 {[%clk 0:02:55]} 8. Ne2 {[%clk 0:02:59]}  h6 {[%clk 0:02:55]} 9. f4 {[%clk 0:02:59]}  Nge7 {[%clk 0:02:56]} 10. Rb1 {[%clk 0:02:56]}  O-O {[%clk 0:02:52]} 11. O-O {[%clk 0:02:55]}  Kh7 {[%clk 0:02:52]} 12. c4 {[%clk 0:02:55]}  Nd4 {[%clk 0:02:50]} 13. Nxd4 {[%clk 0:02:55]}  cxd4 {[%clk 0:02:50]} 14. Bd2 {[%clk 0:02:55]}  f5 {[%clk 0:02:51]} 15. Qe2 {[%clk 0:02:52]}  Nxd5 {[%clk 0:02:28]} 16. cxd5 {[%clk 0:02:48]}  Bd7 {[%clk 0:02:26]} 17. Bb4 {[%clk 0:02:48]}  Bb5 {[%clk 0:02:25]} 18. b3 {[%clk 0:02:48]}  a5 {[%clk 0:02:25]} 19. Ba3 {[%clk 0:02:46]}  Qd7 {[%clk 0:02:22]} 20. fxe5 {[%clk 0:02:45]}  Bxe5 {[%clk 0:02:20]} 21. exf5 {[%clk 0:02:45]}  Rxf5 {[%clk 0:02:05]} 22. Be4 {[%clk 0:02:43]}  Rxf1+ {[%clk 0:02:01]} 23. Rxf1 {[%clk 0:02:43]}  Kg7 {[%clk 0:01:56]} 24. Bc1 {[%clk 0:02:42]}  Qe7 {[%clk 0:01:54]} 25. Qg4 {[%clk 0:02:40]}  Be8 {[%clk 0:01:48]} 26. h4 {[%clk 0:02:37]}  h5 {[%clk 0:01:44]} 27. Qf3 {[%clk 0:02:28]}  Qf7 {[%clk 0:01:42]} 28. Qg2 {[%clk 0:02:28]}  Qd7 {[%clk 0:01:40]} 29. Bg5 {[%clk 0:02:25]}  Qg4 {[%clk 0:01:39]} 30. Rf3 {[%clk 0:02:24]}  a4 {[%clk 0:01:38]} 31. b4 {[%clk 0:02:23]}  a3 {[%clk 0:01:38]} 32. Kh2 {[%clk 0:02:20]}  Rc8 {[%clk 0:01:38]} 33. Qd2 {[%clk 0:02:19]}  Bd7 {[%clk 0:01:33]} 34. Bf4 {[%clk 0:02:08]}  Qh3+ {[%clk 0:01:29]} 35. Kg1 {[%clk 0:02:07]}  Rf8 {[%clk 0:01:01]} 36. Bh6+ {[%clk 0:02:06]}  Kh7 {[%clk 0:00:58]} 37. Bxf8 {[%clk 0:02:02]}  Bxg3 {[%clk 0:00:55]} 38. Qh6+ {[%clk 0:01:56]} 1-0


[Site "https://www.chess.com"]

[Event "Titled Tuesday Blitz February 21 Early 2023"]
[White "Lerch, Philipp"]
[Black "Kornyukov, Alexey"]
[WhiteFideId "4654129"]
[BlackFideId "4150457"]
[WhiteElo "2305"]
[BlackElo "2452"]
[Result "1-0"]
[Round "11"]
[TimeControl "180+2"]
[Date "2023.02.21"]
[WhiteClock "0:00:12"]
[BlackClock "0:00:07"]

1. e4 {[%clk 0:03:00]}  c5 {[%clk 0:02:46]} 2. Be2 {[%clk 0:02:52]}  Nc6 {[%clk 0:02:44]} 3. c3 {[%clk 0:02:51]}  e6 {[%clk 0:02:42]} 4. Nf3 {[%clk 0:02:50]}  d5 {[%clk 0:02:41]} 5. d3 {[%clk 0:02:51]}  Nge7 {[%clk 0:02:39]} 6. O-O {[%clk 0:02:50]}  g6 {[%clk 0:02:38]} 7. Bg5 {[%clk 0:02:50]}  Bg7 {[%clk 0:02:36]} 8. Qc1 {[%clk 0:02:47]}  h6 {[%clk 0:02:35]} 9. Bf4 {[%clk 0:02:47]}  g5 {[%clk 0:02:35]} 10. Be3 {[%clk 0:02:44]}  d4 {[%clk 0:02:34]} 11. cxd4 {[%clk 0:02:40]}  cxd4 {[%clk 0:02:34]} 12. Bd2 {[%clk 0:02:40]}  O-O {[%clk 0:02:31]} 13. b4 {[%clk 0:02:40]}  Ng6 {[%clk 0:02:28]} 14. b5 {[%clk 0:02:37]}  Nce5 {[%clk 0:02:27]} 15. Nxe5 {[%clk 0:02:34]}  Nxe5 {[%clk 0:02:26]} 16. Na3 {[%clk 0:02:34]}  Bd7 {[%clk 0:02:17]} 17. Qb2 {[%clk 0:02:33]}  Rc8 {[%clk 0:02:14]} 18. Rac1 {[%clk 0:02:32]}  Qe7 {[%clk 0:02:13]} 19. Bb4 {[%clk 0:02:29]}  Qf6 {[%clk 0:02:09]} 20. Bxf8 {[%clk 0:02:27]}  Rxf8 {[%clk 0:02:07]} 21. Rc7 {[%clk 0:02:14]}  Qd8 {[%clk 0:02:04]} 22. Rxb7 {[%clk 0:02:10]}  Bc8 {[%clk 0:01:59]} 23. Rxa7 {[%clk 0:02:05]}  Qb6 {[%clk 0:01:58]} 24. Ra4 {[%clk 0:01:59]}  Nd7 {[%clk 0:01:51]} 25. Nc4 {[%clk 0:01:57]}  Qb8 {[%clk 0:01:50]} 26. b6 {[%clk 0:01:54]}  Nc5 {[%clk 0:01:49]} 27. Rb4 {[%clk 0:01:54]}  Nxe4 {[%clk 0:01:49]} 28. dxe4 {[%clk 0:01:49]}  d3 {[%clk 0:01:49]} 29. Qd2 {[%clk 0:01:46]}  dxe2 {[%clk 0:01:44]} 30. Qxe2 {[%clk 0:01:47]}  Ba6 {[%clk 0:01:40]} 31. a4 {[%clk 0:01:24]}  Rc8 {[%clk 0:01:38]} 32. a5 {[%clk 0:01:23]}  Bc3 {[%clk 0:01:36]} 33. Rfb1 {[%clk 0:01:17]}  Bxb4 {[%clk 0:01:33]} 34. Rxb4 {[%clk 0:01:18]}  Qf4 {[%clk 0:01:28]} 35. g3 {[%clk 0:01:08]}  Qc1+ {[%clk 0:01:25]} 36. Kg2 {[%clk 0:01:01]}  Bxc4 {[%clk 0:01:20]} 37. Rxc4 {[%clk 0:00:55]}  Rxc4 {[%clk 0:01:10]} 38. b7 {[%clk 0:00:55]}  Rb4 {[%clk 0:01:08]} 39. a6 {[%clk 0:00:56]}  Qa3 {[%clk 0:00:49]} 40. Qd2 {[%clk 0:00:44]}  Kh7 {[%clk 0:00:39]} 41. Qd7 {[%clk 0:00:34]}  Kg6 {[%clk 0:00:33]} 42. Qd6 {[%clk 0:00:20]}  Qa5 {[%clk 0:00:19]} 43. Qf8 {[%clk 0:00:08]}  Rb1 {[%clk 0:00:14]} 44. Qg8+ {[%clk 0:00:07]}  Kf6 {[%clk 0:00:14]} 45. Qh8+ {[%clk 0:00:07]}  Ke7 {[%clk 0:00:12]} 46. b8=Q {[%clk 0:00:06]}  Rxb8 {[%clk 0:00:12]} 47. Qxb8 {[%clk 0:00:07]}  Qxa6 {[%clk 0:00:12]} 48. Qc7+ {[%clk 0:00:07]}  Kf6 {[%clk 0:00:12]} 49. Qd8+ {[%clk 0:00:08]}  Kg7 {[%clk 0:00:12]} 50. Qe7 {[%clk 0:00:08]}  Qc6 {[%clk 0:00:11]} 51. f3 {[%clk 0:00:09]}  Qc2+ {[%clk 0:00:11]} 52. Kh3 {[%clk 0:00:10]}  Qd1 {[%clk 0:00:10]} 53. Kg4 {[%clk 0:00:09]}  h5+ {[%clk 0:00:08]} 54. Kxg5 {[%clk 0:00:09]}  Qxf3 {[%clk 0:00:08]} 55. h3 {[%clk 0:00:02]}  Qxg3+ {[%clk 0:00:08]} 56. Kxh5 {[%clk 0:00:03]}  Qg6+ {[%clk 0:00:08]} 57. Kh4 {[%clk 0:00:03]}  Qf6+ {[%clk 0:00:08]} 58. Qxf6+ {[%clk 0:00:03]}  Kxf6 {[%clk 0:00:08]} 59. Kg4 {[%clk 0:00:03]}  Kg6 {[%clk 0:00:09]} 60. h4 {[%clk 0:00:04]}  Kh6 {[%clk 0:00:09]} 61. Kf4 {[%clk 0:00:04]}  Kh5 {[%clk 0:00:09]} 62. Ke5 {[%clk 0:00:04]}  Kxh4 {[%clk 0:00:09]} 63. Kf6 {[%clk 0:00:05]}  Kg4 {[%clk 0:00:10]} 64. Kxf7 {[%clk 0:00:06]}  e5 {[%clk 0:00:09]} 65. Ke6 {[%clk 0:00:06]}  Kf4 {[%clk 0:00:05]} 66. Kd5 {[%clk 0:00:06]}  Kg5 {[%clk 0:00:05]} 67. Kxe5 {[%clk 0:00:07]}  Kg6 {[%clk 0:00:05]} 68. Ke6 {[%clk 0:00:08]}  Kg7 {[%clk 0:00:06]} 69. Ke7 {[%clk 0:00:08]}  Kg6 {[%clk 0:00:06]} 70. e5 {[%clk 0:00:09]}  Kf5 {[%clk 0:00:07]} 71. e6 {[%clk 0:00:10]}  Ke5 {[%clk 0:00:07]} 72. Kf7 {[%clk 0:00:10]}  Kd6 {[%clk 0:00:07]} 73. e7 {[%clk 0:00:11]}  Kd7 {[%clk 0:00:07]} 74. e8=Q+ {[%clk 0:00:12]} 1-0


[Site "https://www.chess.com"]